Cogmind - Beta 12 @@@ ROGUE MODE // 2023.08.06 @ 13:47:11 Player: CrossedViper Result: Self-destructed Performance ------------- Evolutions (9) 4500 Regions Visited (17) 3400 Robots Destroyed (125) 625 Value Destroyed (3064) 3064 Prototype IDs (30) 600 Alien Tech Used (2) 400 Bonus (359) 359 TOTAL SCORE: 12948 Bonus ------- High Alert Combat Kills 148 Follower Combat Kills 296 Friendly Fire -85 Cogmind --------- Core Integrity 539/1600 Matter 300/300 Energy 100/100 System Corruption 3% Temperature Cool (0) Movement Core (50) Location -1/Access Parts ------- > --- POWER (4) -------- (None) > --- PROPULSION (6) --- (None) > --- UTILITY (11) ----- Machine Analyzer Experimental Optical Array Transport Network Coupler Hacking Suite System Shield > --- WEAPON (4) ------- (None) > --- INVENTORY (5) ---- High-capacity Storage Unit Core Reset Matrix Vibroblade Peak State ------------ > --- POWER ------------ Light Particle Reactor Quantum Reactor > --- PROPULSION ------- Advanced Heavy Siege Treads Myomer Leg Centrium Leg Centrium Leg Experimental Biometal Leg > --- UTILITY ---------- Advanced Cooling System Advanced Cooling System Machine Analyzer Experimental Optical Array Improved Melee Analysis Suite Hacking Suite Advanced Hacking Suite System Shield > --- WEAPON ----------- Vibroblade > --- INVENTORY -------- Myomer Leg Scrap Engine Core Reset Matrix [Rating: 120] Favorites ----------- Power Ion Engine Engine Ion Engine Power Core Light Fission Core Reactor Quantum Reactor Propulsion Light Treads Treads Light Treads Leg Aluminum Leg Flight Unit Cooled VTOL Module Utility Hacking Suite Device Tractor Beam Storage Large Storage Unit Processor Machine Analyzer Hackware Hacking Suite Protection Hardened Light Armor Plating Artifact Phase Armor Weapon Advanced Beam Cannon Energy Gun Improved EM Shotgun Energy Cannon Advanced Beam Cannon Ballistic Gun Assault Rifle Launcher Rocket Launcher Impact Weapon Powered Hammer Slashing Weapon Chainsword Build | -11 -10 -9 -9 -9 -7 -6 -6 -6 -5 -4 -4 -4 -3 -3 -2 -2 -1 ------- Run | Jun Mat Mat Sto Rec Fac Fac Was Fac Fac Fac Arm Lab Res Qua Res Tes Acc Slots Evolved 18 | . . 2 . . 4 2 . . 2 2 . . 2 . 2 . 2 Power 3 | . . . . . . . . . . 1 . . . . . . 2 Propulsion 4 | . . 1 . . 1 1 . . 1 . . . . . . . . Utility 9 | . . 1 . . 3 1 . . 1 1 . . 2 . . . . Weapon 2 | . . . . . . . . . . . . . . . 2 . . Parts Attached 176 | 9 7 27 19 3 26 2 1 5 6 9 7 . 14 9 16 12 4 Power 24 | 2 1 1 2 . 4 . . 3 . 1 2 . 2 2 2 2 . Engine 10 | 2 1 1 2 . 4 . . . . . . . . . . . . Core 5 | . . . . . . . . 2 . . . . 1 1 1 . . Reactor 9 | . . . . . . . . 1 . 1 2 . 1 1 1 2 . Propulsion 44 | 2 . 10 9 . 6 1 . . 1 . 4 . 1 . 4 6 . Treads 18 | 2 . 7 8 . . . . . . . . . . . . 1 . Leg 8 | . . 3 . . . . . . . . . . . . . 5 . Wheel . | . . . . . . . . . . . . . . . . . . Hover . | . . . . . . . . . . . . . . . . . . Flight 18 | . . . 1 . 6 1 . . 1 . 4 . 1 . 4 . . Utility 58 | 3 2 5 3 1 10 1 . 1 3 8 . . 8 2 5 3 3 Device 15 | 1 . 2 . . 1 . . 1 . 1 . . 2 1 2 2 2 Storage 5 | 2 2 . . . 1 . . . . . . . . . . . . Processor 8 | . . 1 1 1 . . . . . . . . 3 . 1 . 1 Hackware 22 | . . . . . 7 1 . . 2 6 . . 3 . 2 1 . Protection 7 | . . 2 2 . 1 . . . 1 1 . . . . . . . Artifact 1 | . . . . . . . . . . . . . . 1 . . . Weapon 50 | 2 4 11 5 2 6 . 1 1 2 . 1 . 3 5 5 1 1 Energy Gun 1 | . . . 1 . . . . . . . . . . . . . . Energy Cannon 9 | . . 4 3 1 . . 1 . . . . . . . . . . Ballistic Gun 13 | 2 4 6 1 . . . . . . . . . . . . . . Ballistic Cannon . | . . . . . . . . . . . . . . . . . . Launcher 1 | . . . . . . . . . 1 . . . . . . . . Special Weapon . | . . . . . . . . . . . . . . . . . . Impact Weapon 8 | . . . . . . . . . . . 1 . 3 4 . . . Slashing Weapon 18 | . . 1 . 1 6 . . 1 1 . . . . 1 5 1 1 Piercing Weapon . | . . . . . . . . . . . . . . . . . . Special Melee Weapon . | . . . . . . . . . . . . . . . . . . Unidentified Prototypes 14 | . . . 4 . 1 . . 1 . . . . 1 2 2 3 . Corrupted Parts 2 | . . . . . 1 . . . . 1 . . . . . . . System Corruption 5 | . . . . . 4 . . . . 1 . . . . . . . Parts Lost 49 | . . 3 5 . 1 . . 1 2 1 9 . . 3 9 8 7 Power 4 | . . . 1 . . . . . . 1 . . . . . 2 . Propulsion 19 | . . 2 4 . . . . . . . 4 . . 2 1 4 2 Utility 23 | . . 1 . . 1 . . 1 1 . 4 . . 1 7 2 5 Weapon 3 | . . . . . . . . . 1 . 1 . . . 1 . . Highest Loss Streak 9 | . . 2 2 . 1 . . 1 1 1 9 . . 2 4 6 5 To Critical Strikes . | . . . . . . . . . . . . . . . . . . Average Slot Usage (%) 84 | . 100 97 97 100 76 90 93 90 89 86 75 44 50 54 39 55 44 Engine 7 | . 14 11 10 11 4 6 6 1 . . . . . . . . . Treads 16 | . 28 19 32 33 . . . . . . . . . . . 2 . Leg 2 | . . 11 . . . . . . . . . . . . . 12 6 Flight 6 | . . . . . 22 33 33 33 35 31 26 15 13 12 5 4 . Device 6 | . 14 14 6 . 1 . . 2 3 . . . . 1 . 3 8 Storage 8 | . 14 11 11 11 7 6 6 6 5 5 5 5 4 4 2 . . Processor 7 | . . . 4 21 9 6 6 6 5 5 5 5 17 19 14 13 14 Hackware 7 | . . . . . 21 24 26 21 21 27 25 10 14 14 13 12 11 Protection 3 | . . 7 9 . 1 6 6 6 5 6 3 . . . . . . Energy Cannon 4 | . . 6 12 11 . . . 2 . . . . . . . . . Ballistic Gun 9 | . 28 12 8 11 . . . . . . . . . . . . . Slashing Weapon 1 | . . 2 1 . 3 6 6 3 3 5 3 . . . 1 2 1 Naked Turns . | . . . . . . . . . . . . . . . . . . Heaviest Build 42 | 14 32 40 40 39 35 20 24 26 29 29 27 25 18 18 28 42 12 Greatest Support 113 | 40 40 60 60 60 60 26 26 26 31 31 31 15 19 19 26 113 28 Greatest Overweight (x) 9 | . . 1 . . 3 . . . . . 1 1 1 3 9 . . Average Overweight (x) . | . . . . . . . . . . . . 1 . . . . . Largest Inventory Capacity 15 | 8 15 15 15 15 15 10 10 10 10 10 10 10 10 10 10 5 5 Average Capacity 11 | 7 12 15 15 15 10 10 10 10 10 10 10 10 10 10 7 5 5 Most Carried 15 | 6 15 15 15 15 15 10 10 10 9 10 10 8 9 10 10 5 5 Average Carried 10 | 3 10 14 14 14 8 9 9 9 7 8 9 7 7 8 6 4 2 Final Capacity 15 | 8 15 15 15 15 10 10 10 10 10 10 10 10 10 10 5 5 5 Final Carried 15 | 6 15 15 15 15 10 10 10 10 8 10 7 8 8 10 4 5 3 Scrap Engine Consumption 13 | . . . . . . . . . . . . . . . . . 13 Constructs Created 2 | . . . . . . . . . . . . . . . . . 2 Constructs Modified 1 | . . . . . . . . . . . . . . . . . 1 Class Distribution -------------------- 30% | Mutant 24% | Scavenger-Mutant 17% | Hacker-Mutant 17% | Hacker-Sprinter 5% | Commander-Mutant Dominant Class ---------------- Mutant | -10/Materials Mutant | -9/Materials Scavenger-Mutant | -9/Storage Scavenger-Mutant | -9/Recycling Hacker-Sprinter | -7/Factory Hacker-Sprinter | -6/Factory Hacker-Sprinter | -6/Waste Hacker-Sprinter | -6/Factory Hacker-Sprinter | -5/Factory Hacker-Sprinter | -4/Factory Wizard-Sprinter | -4/Armory Hacker-Mutant | -4/Lab Hacker-Sprinter | -3/Research Hacker-Mutant | -3/Quarantine Hacker-Mutant | -2/Research Hacker-Mutant | -2/Testing Hacker-Mutant | -1/Access Resources | -11 -10 -9 -9 -9 -7 -6 -6 -6 -5 -4 -4 -4 -3 -3 -2 -2 -1 ----------- Run | Jun Mat Mat Sto Rec Fac Fac Was Fac Fac Fac Arm Lab Res Qua Res Tes Acc Matter Collected 2833 | 330 423 632 350 27 299 . . 85 94 . 78 . . 240 56 90 129 Remotely 827 | 185 414 228 . . . . . . . . . . . . . . . Salvage Created 5011 | 119 674 1435 1339 . 287 . . . 139 . 78 . 41 220 120 166 393 Parts 305 | 11 45 93 89 1 27 . . . 6 . 7 . . 5 6 7 8 Haulers Intercepted 15 | . 2 4 6 . . . . . 1 . . . . 1 . . 1 Recyclers Shooed 4 | . 1 1 1 . 1 . . . . . . . . . . . . Parts Field Recycled . | . . . . . . . . . . . . . . . . . . Retrieved Matter . | . . . . . . . . . . . . . . . . . . Parts Self-Destructed . | . . . . . . . . . . . . . . . . . . Prevented . | . . . . . . . . . . . . . . . . . . Kills | -11 -10 -9 -9 -9 -7 -6 -6 -6 -5 -4 -4 -4 -3 -3 -2 -2 -1 ------- Run | Jun Mat Mat Sto Rec Fac Fac Was Fac Fac Fac Arm Lab Res Qua Res Tes Acc Combat Hostiles Destroyed 65 | . 9 21 22 . 1 . . . 5 . 1 . . 1 1 2 2 Melee 12 | . . 1 3 . 1 . . . . . 1 . . 1 1 2 2 Guns 30 | . 9 17 4 . . . . . . . . . . . . . . Cannons 18 | . . 3 15 . . . . . . . . . . . . . . AOE 5 | . . . . . . . . . 5 . . . . . . . . Classes Destroyed 15 | 2 5 5 . . 1 . . . . . 1 . . 1 . . . Worker 5 | . 2 2 . . 1 . . . . . . . . . . . . Builder 7 | . 1 . . 1 3 . . . . . . . 2 . . . . Tunneler 5 | 4 1 . . . . . . . . . . . . . . . . Hauler 15 | . 2 4 6 . . . . . 1 . . . . 1 . . 1 Recycler 12 | 1 1 4 3 . 2 . . . . . . . . . . . 1 Mechanic 1 | . . 1 . . . . . . . . . . . . . . . Operator 9 | . 1 4 2 . 1 . . . . . . . . . 1 . . Watcher 5 | . . 1 2 . 2 . . . . . . . . . . . . Swarmer 16 | . . 3 8 . . . . . 5 . . . . . . . . Grunt 31 | . 9 10 9 . . . . . . . . . . 1 . . 2 Duelist 1 | . . 1 . . . . . . . . . . . . . . . Researcher 1 | . . . . . . . . . . . . . . 1 . . . Sentry 13 | . . 7 5 . . . . . . . . . . . 1 . . Specialist 3 | . . . . . . . . . . . 1 . . . . 2 . Programmer 1 | . . . . . 1 . . . . . . . . . . . . Best Kill Streak 9 | 2 4 4 9 1 6 . . . 5 . 1 . 2 2 1 2 2 Combat Bots Only 5 | . 2 4 4 . 1 . . . 5 . 1 . . 1 1 2 1 Max Kills in Single Turn 2 | 1 2 2 2 1 1 . . . 2 . 1 . 1 1 1 1 1 Gunslinging 1 | . . 1 . . . . . . . . . . . . . . . Exploded 2 | . . . . . . . . . 2 . . . . . . . . Melee 1 | . . 1 1 . 1 . . . . . 1 . . 1 1 1 1 Uniques/NPCs Destroyed . | . . . . . . . . . . . . . . . . . . Combat | -11 -10 -9 -9 -9 -7 -6 -6 -6 -5 -4 -4 -4 -3 -3 -2 -2 -1 -------- Run | Jun Mat Mat Sto Rec Fac Fac Was Fac Fac Fac Arm Lab Res Qua Res Tes Acc Damage Taken 10970 | . 548 1118 1051 . 287 62 . 140 350 217 946 . 90 329 1593 2173 2066 Core 3479 | . 65 118 156 . 133 12 . 23 125 107 392 . 60 200 707 320 1061 Absorbed by Shields 16 | . . . . . . . . . . . 16 . . . . . . Redirected to Shielding 197 | . . . . . . 18 . 28 37 22 92 . . . . . . Regen/Repaired (Parts) 547 | . . 131 . . . . . . . 83 . . 57 16 260 . . Core Remaining (%) 70 | 100 74 . . 31 81 . . 95 87 . . 56 . 80 . 29 . Volleys Fired 252 | 10 67 84 83 1 . . . 2 5 . . . . . . . . Largest 2 | 2 2 2 2 2 . . . 1 1 . . . . . . . . Hottest 136 | 40 40 91 136 91 . . . 80 33 . . . . . . . . Shots Fired 461 | 20 135 145 151 3 . . . 2 5 . . . . . . . . Gun 300 | 20 135 94 49 2 . . . . . . . . . . . . . Cannon 156 | . . 51 102 1 . . . 2 . . . . . . . . . Launcher 5 | . . . . . . . . . 5 . . . . . . . . Special . | . . . . . . . . . . . . . . . . . . Kinetic 300 | 20 135 94 49 2 . . . . . . . . . . . . . Thermal 156 | . . 51 102 1 . . . 2 . . . . . . . . . Explosive 5 | . . . . . . . . . 5 . . . . . . . . Electromagnetic . | . . . . . . . . . . . . . . . . . . Robot Hit Streak 12 | 6 9 12 10 3 . . . . 1 . . . . . . . . Robot Miss Streak 8 | 2 8 4 6 . . . . . 1 . . . . . . . . Penetration Max . | . . . . . . . . . . . . . . . . . . Secondary Targets 3 | . . 3 . . . . . . . . . . . . . . . Max Gunslinging Chain 1 | . . 1 . . . . . . . . . . . . . . . Shots Hit Robots 372 | 12 91 113 91 1 13 . . 2 4 . 2 . 2 5 8 10 18 Core Hits 160 | 6 32 55 39 . 8 . . . 6 . 1 . . 1 3 3 6 Critical Kills . | . . . . . . . . . . . . . . . . . . Critical Parts Destroyed 2 | . . 1 . . . . . . . . . . . 1 . . . Critical Strikes 9 | . . 1 . . . . . 1 . . . . . 2 1 2 2 Destroy 1 | . . 1 . . . . . . . . . . . . . . . Smash 1 | . . . . . . . . . . . . . . 1 . . . Sever 7 | . . . . . . . . 1 . . . . . 1 1 2 2 Melee Attacks 144 | . . 10 15 . 18 1 . 14 15 10 5 . 4 7 13 11 21 Impact 9 | . . . . . . . . . . . 1 . 4 4 . . . Slashing 135 | . . 10 15 . 18 1 . 14 15 10 4 . . 3 13 11 21 Piercing . | . . . . . . . . . . . . . . . . . . Sneak Attacks 24 | . . 7 1 . 6 . . 1 1 . 1 . 2 2 . . 3 Combat Hostiles . | . . . . . . . . . . . . . . . . . . Follow-up Attacks . | . . . . . . . . . . . . . . . . . . Damage Inflicted 10354 | 127 1128 2502 2082 16 794 . . 105 570 . 115 . 207 506 566 557 1079 Guns 2884 | 127 1118 1281 358 . . . . . . . . . . . . . . Cannons 1872 | . . 645 1227 . . . . . . . . . . . . . . Explosions 401 | . . . . . . . . . 401 . . . . . . . . Melee 5127 | . . 571 497 . 794 . . 105 169 . 115 . 207 506 566 522 1075 Ramming 70 | . 10 5 . 16 . . . . . . . . . . . 35 4 Kinetic 2884 | 127 1118 1281 358 . . . . . . . . . . . . . . Thermal 1872 | . . 645 1227 . . . . . . . . . . . . . . Explosive 401 | . . . . . . . . . 401 . . . . . . . . Electromagnetic . | . . . . . . . . . . . . . . . . . . Impact 461 | . . . . . . . . . . . . . 207 254 . . . Slashing 4666 | . . 571 497 . 794 . . 105 169 . 115 . . 252 566 522 1075 Piercing . | . . . . . . . . . . . . . . . . . . Highest Corruption 22 | . 2 2 2 2 5 . 5 5 . 2 4 4 1 1 6 22 3 Average Corruption 2 | . 2 2 2 2 2 . 5 5 . 1 2 4 1 1 4 8 2 Corruption Purged 3 | . . . . . 3 . . . . . . . . . . . . Corruption Blocked 35 | . . . . . . . . . . . . . . 15 . 20 . Effects 79 | . 10 10 15 10 8 . 1 4 . . 3 1 . 1 5 11 . Message Errors 18 | . 3 1 3 . 4 . 1 . . . 1 . . . 1 4 . Matter Fused 17 | . . 4 2 6 1 . . . . . 1 . . . 1 2 . Heat Flow Errors 18 | . 1 2 4 3 1 . . . . . . . . 1 3 3 . Energy Discharges 8 | . 3 1 2 . 1 . . 1 . . . . . . . . . Data Loss (minor) 6 | . 1 1 1 . 1 . . 1 . . 1 . . . . . . Data Loss (major) 3 | . . . 1 . . . . 1 . . . 1 . . . . . Misfires 3 | . 1 . 1 1 . . . . . . . . . . . . . Alerts 3 | . 1 . 1 . . . . 1 . . . . . . . . . Misdirections 2 | . . . . . . . . . . . . . . . . 2 . Weapon Failures 1 | . . 1 . . . . . . . . . . . . . . . Overload Shots . | . . . . . . . . . . . . . . . . . . Overflow Damage 844 | . . 254 4 . 135 . . . 68 . . . 147 194 19 . 23 Projectiles 16 | . . 12 4 . . . . . . . . . . . . . . Explosions 68 | . . . . . . . . . 68 . . . . . . . . Melee 760 | . . 242 . . 135 . . . . . . . 147 194 19 . 23 Knockbacks 1 | . . . . . . . . . . . . . . 1 . . . Impact 1 | . . . . . . . . . . . . . . 1 . . . Kinetic . | . . . . . . . . . . . . . . . . . . Secondary . | . . . . . . . . . . . . . . . . . . Self-Inflicted Damage 29 | . . . . . . . . . 24 . . . . . . 5 . Shots 1 | . . . . . . . . . 1 . . . . . . . . Rammed 5 | . 2 . . 2 . . . . . . . . . . . 1 . Targets Rammed 18 | 1 2 5 . 3 . . . . . . . . . . . 5 2 Kicked 11 | . . 5 . . . . . . . . . . . . . 4 2 Crushed 2 | 1 . . . 1 . . . . . . . . . . . . . Highest Temperature 391 | . 213 391 267 204 177 . . 62 4 12 26 . 18 17 240 180 . Average Temperature 86 | . 43 112 80 76 102 . . 24 2 6 9 . 13 17 89 90 . Received Heat Transfer 1775 | . 327 507 198 . 9 24 . 12 36 36 235 . 40 99 99 18 135 Effects 1 | . . 1 . . . . . . . . . . . . . . . Interference 1 | . . 1 . . . . . . . . . . . . . . . Siege Activations . | . . . . . . . . . . . . . . . . . . Robots Corrupted . | . . . . . . . . . . . . . . . . . . Combat Hostiles . | . . . . . . . . . . . . . . . . . . Parts Fried 6 | . . . . . . . . . . . . . 5 1 . . . Impact Corruptions 8 | . . . . . . . . . . . . . 4 4 . . . Robots Melted . | . . . . . . . . . . . . . . . . . . Combat Hostiles . | . . . . . . . . . . . . . . . . . . Parts Melted 1 | . . . 1 . . . . . . . . . . . . . . Heat Transferred 3330 | . . 1147 2183 . . . . . . . . . . . . . . Parts Sabotaged 4 | . . . . . . . . . . . 4 . . . . . . Parts Stolen . | . . . . . . . . . . . . . . . . . . Parts Stripped . | . . . . . . . . . . . . . . . . . . Power Chain Reactions . | . . . . . . . . . . . . . . . . . . Missiles Intercepted . | . . . . . . . . . . . . . . . . . . Alert | -11 -10 -9 -9 -9 -7 -6 -6 -6 -5 -4 -4 -4 -3 -3 -2 -2 -1 ------- Run | Jun Mat Mat Sto Rec Fac Fac Was Fac Fac Fac Arm Lab Res Qua Res Tes Acc Peak Influence 794 | 25 259 513 794 362 394 210 118 426 550 672 480 . 90 170 553 226 168 Initial 351 | . 16 74 169 309 351 120 73 82 208 269 324 . . 8 24 226 71 Average 254 | 13 114 311 550 186 294 148 94 286 396 422 338 . 27 72 152 120 95 Maximum Alert Level 3 | . 1 2 3 1 1 1 . 2 2 2 2 . . . 2 1 . Low Security (%) 47 | 100 91 24 5 48 . 98 100 25 . . 17 . 100 100 68 91 100 Level 1 30 | . 8 47 16 51 100 1 . 61 37 38 40 . . . 22 8 . Level 2 18 | . . 28 54 . . . . 13 62 61 42 . . . 9 . . Level 3 3 | . . . 24 . . . . . . . . . . . . . . Level 4 . | . . . . . . . . . . . . . . . . . . Level 5 . | . . . . . . . . . . . . . . . . . . High Security . | . . . . . . . . . . . . . . . . . . Max Security . | . . . . . . . . . . . . . . . . . . Squads Dispatched 39 | . 4 5 3 . 5 1 . 4 2 3 7 . . 1 2 1 1 Investigation 16 | . 3 . . . 2 1 . 4 . 2 3 . . . 1 . . Extermination 2 | . . . . . 1 . . . . 1 . . . . . . . Reinforcement 18 | . 1 3 2 . 2 . . . 2 . 4 . . 1 1 1 1 Assault 2 | . . 2 . . . . . . . . . . . . . . . Garrison 1 | . . . 1 . . . . . . . . . . . . . . Intercept . | . . . . . . . . . . . . . . . . . . Searches Triggered . | . . . . . . . . . . . . . . . . . . Construction Impeded . | . . . . . . . . . . . . . . . . . . Haulers Reinforced 1 | . . . . . . . . . . . . . . . . . 1 Active Scanning Responses . | . . . . . . . . . . . . . . . . . . Cargo Convoy Interrupts . | . . . . . . . . . . . . . . . . . . Stealth | -11 -10 -9 -9 -9 -7 -6 -6 -6 -5 -4 -4 -4 -3 -3 -2 -2 -1 --------- Run | Jun Mat Mat Sto Rec Fac Fac Was Fac Fac Fac Arm Lab Res Qua Res Tes Acc Distress Signals 24 | . 1 3 3 . . 1 . 2 2 1 10 . . 1 . . . Communications Jammed . | . . . . . . . . . . . . . . . . . . Distress Signals . | . . . . . . . . . . . . . . . . . . Times Spotted 377 | . 35 46 34 3 12 7 4 27 29 22 63 . 10 19 32 18 16 Peak Tracking Total 47 | . 6 7 5 1 4 7 4 17 7 11 47 . 5 16 19 15 12 Tactical Retreats 44 | . 3 . 4 . 4 . . 6 7 4 4 . 2 1 9 . . Traps | -11 -10 -9 -9 -9 -7 -6 -6 -6 -5 -4 -4 -4 -3 -3 -2 -2 -1 ------- Run | Jun Mat Mat Sto Rec Fac Fac Was Fac Fac Fac Arm Lab Res Qua Res Tes Acc Traps Triggered 8 | . 1 1 . . 2 1 . . . . 1 . 1 1 . . . Indirectly . | . . . . . . . . . . . . . . . . . . Trap Hack Attempts . | . . . . . . . . . . . . . . . . . . Triggered . | . . . . . . . . . . . . . . . . . . Disarmed 4 | . . 4 . . . . . . . . . . . . . . . Reprogrammed 4 | . 4 . . . . . . . . . . . . . . . . Reused 3 | . 3 . . . . . . . . . . . . . . . . Traps Extracted . | . . . . . . . . . . . . . . . . . . Installed . | . . . . . . . . . . . . . . . . . . Triggered 3 | . 3 . . . . . . . . . . . . . . . . Machines | -11 -10 -9 -9 -9 -7 -6 -6 -6 -5 -4 -4 -4 -3 -3 -2 -2 -1 ---------- Run | Jun Mat Mat Sto Rec Fac Fac Was Fac Fac Fac Arm Lab Res Qua Res Tes Acc Machines Disabled 13 | . . 2 4 1 . 1 . . 1 . 1 . . 3 . . . Max in Single Turn 1 | . . 1 1 1 . 1 . . 1 . 1 . . 1 . . . Garrison Access 1 | . . . . . . . . . . . . . . . 1 . . Machines Repaired . | . . . . . . . . . . . . . . . . . . Machines Sabotaged . | . . . . . . . . . . . . . . . . . . Overloaded Fab Kills . | . . . . . . . . . . . . . . . . . . Hacking | -11 -10 -9 -9 -9 -7 -6 -6 -6 -5 -4 -4 -4 -3 -3 -2 -2 -1 --------- Run | Jun Mat Mat Sto Rec Fac Fac Was Fac Fac Fac Arm Lab Res Qua Res Tes Acc Machines Accessed 83 | . 7 9 2 10 7 2 . 7 4 6 5 . 11 5 4 2 2 Terminals 55 | . 5 8 2 4 4 1 . 3 2 4 2 . 8 5 3 2 2 Fabricators 12 | . . . . . 2 1 . 2 1 1 3 . 2 . . . . Repair Stations 5 | . . 1 . . . . . 1 1 1 . . 1 . . . . Recycling Units 9 | . 2 . . 6 . . . 1 . . . . . . . . . Scanalyzers 1 | . . . . . 1 . . . . . . . . . . . . Garrison Access 1 | . . . . . . . . . . . . . . . 1 . . Total Hacks 259 | . 21 29 5 14 25 5 . 22 10 25 16 . 41 19 9 9 9 Successful 155 | . 13 15 1 10 15 2 . 12 9 19 13 . 19 13 4 4 6 Failed 102 | . 7 14 4 4 10 3 . 10 1 5 3 . 22 6 5 5 3 Catastrophic 14 | . 2 1 1 2 2 . . 1 . 1 . . 2 . . 1 1 Database Lockouts 2 | . 1 . . . . . . . . 1 . . . . . . . Manual 156 | . 14 16 4 15 7 3 . 15 5 12 14 . 26 11 4 5 5 Terminals 187 | . 19 27 5 8 8 2 . 14 6 14 11 . 30 19 6 9 9 Fabricators 43 | . . . . . 13 3 . 4 2 9 5 . 7 . . . . Repair Stations 13 | . . 2 . . . . . 3 2 2 . . 4 . . . . Recycling Units 9 | . 2 . . 6 . . . 1 . . . . . . . . . Scanalyzers 4 | . . . . . 4 . . . . . . . . . . . . Garrison Access 3 | . . . . . . . . . . . . . . . 3 . . Terminal Hacks 76 | . 8 7 1 4 3 . . 5 6 7 7 . 7 11 2 3 5 Record 2 | . . . . . . . . . . . . . . 1 . . 1 Part Schematic 8 | . . . . . . . . 3 1 2 1 . . 1 . . . Robot Analysis 1 | . 1 . . . . . . . . . . . . . . . . Prototype ID Bank 4 | . 1 . . . . . . . . . . . 1 2 . . . Open Door 2 | . . . 1 . . . . . . . . . 1 . . . . Level Access Points 1 | . . . . . . . . . . 1 . . . . . . . Branch Access Points 6 | . 1 . . . . . . . 1 1 . . 1 . 1 . 1 Machine Index 5 | . . . . . 1 . . . . 2 . . 1 1 . . . Terminal Index 7 | . 1 1 . 1 . . . 1 1 . . . . 1 . 1 . Fabricator Index 3 | . . 1 . . 1 . . . . . . . . 1 . . . Recycling Unit Index 1 | . . . . 1 . . . . . . . . . . . . . Alert Level 5 | . . . . 1 . . . . 1 . . . 1 1 . 1 . Unreport Threat 14 | . . . . 1 1 . . . 2 . 5 . 1 1 . 1 2 Locate Traps 4 | . 2 . . . . . . . . . . . 1 . 1 . . Disarm Traps 2 | . . 2 . . . . . . . . . . . . . . . Reprogram Traps 1 | . 1 . . . . . . . . . . . . . . . . Recall Reinforcements 2 | . . 1 . . . . . . . . . . . 1 . . . Hauler Manifests 6 | . 1 1 . . . . . 1 . 1 . . . 1 . . 1 Registered Components 1 | . . 1 . . . . . . . . . . . . . . . Zone Layout 1 | . . . . . . . . . . . 1 . . . . . . Fabricator Hacks 27 | . . . . . 9 1 . 2 2 7 2 . 4 . . . . Load Schematic 17 | . . . . . 5 1 . 2 1 4 2 . 2 . . . . Build 10 | . . . . . 4 . . . 1 3 . . 2 . . . . Repair Station Hacks 9 | . . 2 . . . . . 1 1 2 . . 3 . . . . Scan Component 6 | . . 1 . . . . . 1 1 1 . . 2 . . . . Repair 3 | . . 1 . . . . . . . 1 . . 1 . . . . Recycling Unit Hacks . | . . . . . . . . . . . . . . . . . . Scanalyzer 2 | . . . . . 2 . . . . . . . . . . . . Insert Component 1 | . . . . . 1 . . . . . . . . . . . . Analyze 1 | . . . . . 1 . . . . . . . . . . . . Garrison Access Hacks 1 | . . . . . . . . . . . . . . . 1 . . Seal Access 1 | . . . . . . . . . . . . . . . 1 . . Unauthorized Hacks 40 | . 5 6 . 6 1 1 . 4 . 3 4 . 5 2 1 1 1 Terminals 21 | . 3 6 . . . . . 1 . 1 1 . 4 2 1 1 1 Track 1 | . . 1 . . . . . . . . . . . . . . . Assimilate 6 | . . 1 . . . . . . . 1 . . 1 . 1 1 1 Botnet 10 | . 2 3 . . . . . 1 . . 1 . 2 1 . . . Disrupt 1 | . . . . . . . . . . . . . . 1 . . . Operators 3 | . 1 1 . . . . . . . . . . 1 . . . . Fabricators 10 | . . . . . 1 1 . 2 . 2 3 . 1 . . . . Prioritize 3 | . . . . . 1 . . . . 1 . . 1 . . . . Download 1 | . . . . . . . . . . . 1 . . . . . . Recompile 6 | . . . . . . 1 . 2 . 1 2 . . . . . . Repair Stations . | . . . . . . . . . . . . . . . . . . Recycling Units 9 | . 2 . . 6 . . . 1 . . . . . . . . . Tunnel 9 | . 2 . . 6 . . . 1 . . . . . . . . . Scanalyzers . | . . . . . . . . . . . . . . . . . . Garrison Access . | . . . . . . . . . . . . . . . . . . Data Cores Recovered 1 | . . . . . . . . . . . . . . 1 . . . Used . | . . . . . . . . . . . . . . . . . . Hacking Detections 62 | . 4 9 2 3 7 1 . 4 3 6 3 . 9 5 2 2 2 Full Trace Events 7 | . 2 . . . 2 . . 1 . 1 . . . . 1 . . Feedback Events . | . . . . . . . . . . . . . . . . . . Feedback Blocked . | . . . . . . . . . . . . . . . . . . Robot Schematics Acquired 1 | . . . . . . . . . . . . . . 1 . . . Robots Built . | . . . . . . . . . . . . . . . . . . Authchips . | . . . . . . . . . . . . . . . . . . Time . | . . . . . . . . . . . . . . . . . . Total Robot Build Rating . | . . . . . . . . . . . . . . . . . . Part Schematics Acquired 12 | . . . . . 1 . . 3 1 2 2 . . 3 . . . Parts Built 10 | . . . . . 4 . . . 1 3 . . 2 . . . . Authchips 9 | . . . . . 3 . . . 1 3 . . 2 . . . . Time 479 | . . . . . 165 . . . 31 112 . . 171 . . . . Total Part Build Rating 47 | . . . . . 16 . . . 5 16 . . 10 . . . . Parts Repaired 3 | . . 1 . . . . . . . 1 . . 1 . . . . Time 68 | . . 26 . . . . . . . 19 . . 23 . . . . Parts Recycled . | . . . . . . . . . . . . . . . . . . Recycled Matter . | . . . . . . . . . . . . . . . . . . Retrieved Matter . | . . . . . . . . . . . . . . . . . . Retrieved Components . | . . . . . . . . . . . . . . . . . . Parts Scanalyzed 1 | . . . . . 1 . . . . . . . . . . . . Part Schematics Acquired 1 | . . . . . 1 . . . . . . . . . . . . Parts Damaged . | . . . . . . . . . . . . . . . . . . Bothacking | -11 -10 -9 -9 -9 -7 -6 -6 -6 -5 -4 -4 -4 -3 -3 -2 -2 -1 ------------ Run | Jun Mat Mat Sto Rec Fac Fac Was Fac Fac Fac Arm Lab Res Qua Res Tes Acc Used RIF Installer . | . . . . . . . . . . . . . . . . . . Robots Hacked . | . . . . . . . . . . . . . . . . . . Non-combat . | . . . . . . . . . . . . . . . . . . Combat . | . . . . . . . . . . . . . . . . . . Robot Hacks Applied . | . . . . . . . . . . . . . . . . . . Relay Couplers Released . | . . . . . . . . . . . . . . . . . . Fabnet Peak Effective % . | . . . . . . . . . . . . . . . . . . Robots Rewired 12 | . . . . . . . . . . . 12 . . . . . . Allies Hacked . | . . . . . . . . . . . . . . . . . . Hacks Repelled . | . . . . . . . . . . . . . . . . . . Allies | -11 -10 -9 -9 -9 -7 -6 -6 -6 -5 -4 -4 -4 -3 -3 -2 -2 -1 -------- Run | Jun Mat Mat Sto Rec Fac Fac Was Fac Fac Fac Arm Lab Res Qua Res Tes Acc Total Allies 26 | . . 1 9 . . . . . . 1 12 . 1 . . 1 1 Largest Group 9 | . . 1 9 8 1 . . . . 1 9 . 1 . . 1 1 Highest-Rated Group 499 | . . 10 80 72 8 . . . . 45 499 . 10 . . 45 26 Highest-Rated Ally 65 | . . 10 16 16 8 . . . . 45 65 . 10 . . 45 26 Total Orders 3 | . . . . . . . . . . 1 1 . 1 . . . . STAY 3 | . . . . . . . . . . 1 1 . 1 . . . . Ally Attacks 85 | . . . 19 26 1 . . . . . 39 . . . . . . Total Damage 1605 | . . . 172 273 12 . . . . . 1148 . . . . . . Kills 13 | . . . 4 4 . . . . . . 5 . . . . . . Allies Corrupted . | . . . . . . . . . . . . . . . . . . Allies Melted . | . . . . . . . . . . . . . . . . . . Intel | -11 -10 -9 -9 -9 -7 -6 -6 -6 -5 -4 -4 -4 -3 -3 -2 -2 -1 ------- Run | Jun Mat Mat Sto Rec Fac Fac Was Fac Fac Fac Arm Lab Res Qua Res Tes Acc Robot Analysis Total 1 | . 1 . . . . . . . . . . . . . . . . Derelict Logs Recovered . | . . . . . . . . . . . . . . . . . . Drone Launches . | . . . . . . . . . . . . . . . . . . Drone Recoveries . | . . . . . . . . . . . . . . . . . . Exploration | -11 -10 -9 -9 -9 -7 -6 -6 -6 -5 -4 -4 -4 -3 -3 -2 -2 -1 ------------- Run | Jun Mat Mat Sto Rec Fac Fac Was Fac Fac Fac Arm Lab Res Qua Res Tes Acc Turns Passed 7545 | 158 1313 1227 1100 770 506 55 26 187 249 269 144 45 251 167 444 323 311 Spaces Moved 7545 | 74 590 478 473 472 824 211 95 590 758 579 399 18 549 292 575 294 274 Core 231 | 12 . . . . . . . . . . . . . 11 17 46 145 Treads 1915 | 62 590 310 473 472 6 . . . . . . . . . . 2 . Legs 461 | . . 168 . . . . . . . . . . . . . 164 129 Wheels . | . . . . . . . . . . . . . . . . . . Hover . | . . . . . . . . . . . . . . . . . . Flight 4938 | . . . . . 818 211 95 590 758 579 399 18 549 281 558 82 . Fastest Speed 20 | 50 160 160 160 160 26 23 23 23 20 20 20 94 23 32 32 42 50 Average Speed 70 | 142 160 170 160 160 30 23 23 23 21 20 22 94 32 39 60 82 82 Slowest Speed 500 | 160 160 190 160 160 255 23 23 23 23 20 94 94 97 230 500 160 120 Overloaded Moves 107 | . . . . . . . . . . . . . 27 . 80 . . Propulsion Burnouts . | . . . . . . . . . . . . . . . . . . Robots Hopped 54 | . . . . . 1 1 . 5 10 6 12 . 4 8 7 . . Cave-ins Triggered 1 | . . . . . . . . . . . . . . . 1 . . Exploration Rate (%) 37 | 4 68 59 64 86 24 9 74 22 23 25 57 6 18 45 24 49 9 Regions Visited 17 Branch Regions 6 Pre-discovered Areas 9 | . 2 . . 6 . . . 1 . . . . . . . . . Known Exits Taken 5 | . . 1 . . . . . . . 1 . 1 1 . 1 . . Unknown Exits Taken 10 | 1 1 . 1 1 1 . . 1 1 . 1 . . 1 . 1 . Scrap Searched . | . . . . . . . . . . . . . . . . . . Spaces Dug 53 | . . . . . 4 . . 12 20 8 2 . 2 . 5 . . Terrain Destroyed 55 | . . . . . 4 . . 12 22 8 2 . 2 . 5 . . Melee 42 | . . . . . 4 . . 12 9 8 2 . 2 . 5 . . Projectile . | . . . . . . . . . . . . . . . . . . AOE 13 | . . . . . . . . . 13 . . . . . . . . Terrain Rammed . | . . . . . . . . . . . . . . . . . . Walls Destroyed . | . . . . . . . . . . . . . . . . . . Machines Disabled . | . . . . . . . . . . . . . . . . . . Actions | -11 -10 -9 -9 -9 -7 -6 -6 -6 -5 -4 -4 -4 -3 -3 -2 -2 -1 --------- Run | Jun Mat Mat Sto Rec Fac Fac Was Fac Fac Fac Arm Lab Res Qua Res Tes Acc Total 9040 | 108 836 730 643 485 1058 215 99 613 807 710 432 46 612 328 637 354 327 Wait 738 | . 142 92 35 . 162 . 1 . 32 110 8 28 40 17 29 24 18 Move 7424 | 73 589 477 472 471 821 209 94 579 737 567 376 17 540 275 560 293 274 Hop 51 | . . . . . 1 1 . 5 10 5 10 . 4 8 7 . . Pick Up 91 | 12 16 16 6 3 10 2 1 2 1 6 4 . 1 4 2 3 2 Fast Attach 59 | 3 2 5 8 . 5 . . 4 2 2 3 . 6 2 6 9 2 Attach 86 | 5 1 7 3 2 20 2 1 . 4 6 4 . 8 7 10 4 2 Detach 35 | . . . . . 7 . 1 1 1 2 . 1 8 5 6 2 1 Swap 33 | 1 4 15 9 1 1 . . 1 . 1 . . . . . . . Drop 90 | 3 13 19 12 4 13 . 1 5 . 1 3 . 1 3 4 3 5 Fire 252 | 10 67 84 83 1 . . . 2 5 . . . . . . . . Melee 144 | . . 10 15 . 18 1 . 14 15 10 5 . 4 7 13 11 21 Ram 1 | . . . . . . . . . . . . . . . . 1 . Kick 11 | . . 5 . . . . . . . . . . . . . 4 2 Crush 6 | 1 2 . . 3 . . . . . . . . . . . . . Escape Stasis . | . . . . . . . . . . . . . . . . . . Rewire 19 | . . . . . . . . . . . 19 . . . . . . Trap . | . . . . . . . . . . . . . . . . . . Miscellaneous . | . . . . . . . . . . . . . . . . . . Route ------- -11/Junkyard -10/Materials (discovered 4 exits: *Mat x3 / Min) -9/Materials (discovered 3 exits: [*Mat] / [*Min] / *Sto) -9/Storage (discovered 2 exits: [*Mat] / *Rec) -9/Recycling -7/Factory -6/Factory -6/Waste -6/Factory -5/Factory (discovered 3 exits: *Fac / Upp x2) -4/Factory (discovered 9 exits: Res x4 / Upp x2 / Ext x2 / *Arm) -4/Armory (discovered 2 exits: Res / [*Lab]) -4/Lab -3/Research (discovered 3 exits: *Res / *Qua x2) -3/Quarantine -2/Research (discovered 2 exits: *Tes x2) -2/Testing -1/Access (discovered 1 exit: Com) History --------- Turn | Location | Event 9 | -11/Junkyard | Discovered new exit (range 16) 159 | -11/Junkyard | Entered Materials 312 | -10/Materials | Build established: Mutant 352 | -10/Materials | Central database locked down 489 | -10/Materials | Discovered new exit (range 6) 1315 | -10/Materials | Discovered new exit (range 16) 1334 | -10/Materials | Identified exit to Mines 1377 | -10/Materials | Discovered new exit (range 16) 1472 | -10/Materials | Entered another Materials area 1472 | -9/Materials | Evolved 2 slots: Propulsion x1, Utility x1 1729 | -9/Materials | Repaired Lgt. Treads 1854 | -9/Materials | Discovered new exit (range 10) 2118 | -9/Materials | Discovered new exit (range 13) 2269 | -9/Materials | Discovered new exit (range 9) 2576 | -9/Materials | Build established: Scavenger-Mutant 2672 | -9/Materials | First assault squad dispatched 2694 | -9/Materials | Identified exit to Storage 2699 | -9/Materials | Entered Storage 2863 | -9/Storage | Core integrity fell below 50% 3159 | -9/Storage | Garrison activated, responded to threat 3455 | -9/Storage | Discovered new exit (range 15) 3526 | -9/Storage | Assisted by bots powering up and referring to "LRC-V3" 3776 | -9/Storage | Used back door to open Recycling access 3776 | -9/Storage | Discovered new exit (range 5) 3799 | -9/Storage | Entered Recycling 3799 | -9/Recycling | Accompanied by 8 allies 3818 | -9/Recycling | Found Scrap Engine 3838 | -9/Recycling | Build established: Commander-Mutant 4237 | -9/Recycling | Build established: Scavenger-Mutant 4489 | -9/Recycling | Discovered new exit (range 15) 4569 | -9/Recycling | Entered Factory 4569 | -7/Factory | Accompanied by 1 ally 4569 | -7/Factory | Evolved 4 slots: Propulsion x1, Utility x3 4766 | -7/Factory | Fabricated Cld. VTOL Module (x1) 4814 | -7/Factory | Fabricated Cld. VTOL Module (x1) 4861 | -7/Factory | Fabricated Cld. VTOL Module? 4974 | -7/Factory | Discovered new exit (range 12) 5042 | -7/Factory | Fabricated Cld. VTOL Module (x1) 5073 | -7/Factory | Build established: Hacker-Sprinter 5075 | -7/Factory | Entered another Factory area 5075 | -6/Factory | Evolved 2 slots: Propulsion x1, Utility x1 5130 | -6/Factory | Sucked down chute 5130 | -6/Factory | Entered Waste 5138 | -6/Waste | Spotted C-40 Crusher 5141 | -6/Waste | Spotted C-40 Crusher 5141 | -6/Waste | Spotted C-40 Crusher 5144 | -6/Waste | Spotted C-40 Crusher 5144 | -6/Waste | Spotted C-40 Crusher 5144 | -6/Waste | Spotted C-40 Crusher 5145 | -6/Waste | EMP discharged 5149 | -6/Waste | Discovered new exit (range 13) 5154 | -6/Waste | Found Corrupted Fusion Bomb Launcher 5156 | -6/Waste | Entered Factory 5279 | -6/Factory | Discovered new exit (range 15) 5343 | -6/Factory | Entered another Factory area 5343 | -5/Factory | Evolved 2 slots: Propulsion x1, Utility x1 5418 | -5/Factory | Fabricated Imp. Hacking Suite (x1) 5481 | -5/Factory | Identified exit to Upper Caves 5591 | -5/Factory | Discovered new exit (range 5) 5592 | -5/Factory | Entered another Factory area 5592 | -4/Factory | Evolved 2 slots: Power x1, Utility x1 5618 | -4/Factory | Identified exit to Upper Caves 5618 | -4/Factory | Identified exit to Extension 5618 | -4/Factory | Identified exit to Armory 5618 | -4/Factory | Identified exit to Research 5644 | -4/Factory | Repaired Imp. Propulsion Shielding 5668 | -4/Factory | Spotted B-86 Titan 5710 | -4/Factory | Fabricated Adv. Hacking Suite (x1) 5745 | -4/Factory | Fabricated Cld. VTOL Module (x1) 5773 | -4/Factory | Fabricated Adv. Hacking Suite (x1) 5789 | -4/Factory | Central database locked down 5848 | -4/Factory | Spotted B-86 Titan 5861 | -4/Factory | Entered Armory 5909 | -4/Armory | Spotted B-86 Titan 5989 | -4/Armory | Discovered new exit (range 9) 5989 | -4/Armory | Discovered exit to Research (range 19) 6005 | -4/Armory | Entered Lab 6005 | -4/Lab | Discovered exit to Research (range 9) 6010 | -4/Lab | Lost 9 parts (4n4u1w) 6050 | -4/Lab | Entered Research 6050 | -3/Research | Evolved 2 slots: Utility x2 6111 | -3/Research | Assembled infested ambush trap array 6133 | -3/Research | Fabricated Exp. Propulsion Shielding? 6140 | -3/Research | Identified exit to Quarantine 6188 | -3/Research | Repaired Cld. VTOL Module 6252 | -3/Research | Fabricated Adv. Sensor Array? 6272 | -3/Research | Discovered new exit (range 9) 6301 | -3/Research | Entered Quarantine 6303 | -3/Quarantine | Found Alien Artifact 6314 | -3/Quarantine | Found Alien Artifact 6314 | -3/Quarantine | Identified Phase Armor 6400 | -3/Quarantine | Found Alien Slashing Weapon 6432 | -3/Quarantine | Identified Sigix Broadsword 6460 | -3/Quarantine | Discovered new exit (range 11) 6468 | -3/Quarantine | Entered Research 6468 | -2/Research | Evolved 2 slots: Weapon x2 6507 | -2/Research | Spotted B-90 Cyclops 6673 | -2/Research | Spotted B-90 Cyclops 6689 | -2/Research | Crushed by falling debris 6749 | -2/Research | Lost 4 parts (4u) 6800 | -2/Research | Identified exit to Testing 6814 | -2/Research | Lost 3 parts (2u1w) 6912 | -2/Research | Entered Testing 6954 | -2/Testing | Core integrity fell below 50% 6999 | -2/Testing | Found Prototype Slashing Weapon 7015 | -2/Testing | Identified Vibroblade 7133 | -2/Testing | Build established: Hacker-Mutant 7163 | -2/Testing | System corruption reached 10% 7218 | -2/Testing | Discovered new exit (range 8) 7235 | -2/Testing | Spotted PX-P5MKCLW64P 7235 | -2/Testing | Entered Access 7235 | -1/Access | Evolved 2 slots: Power x2 7264 | -1/Access | Lost 6 parts (2p3n1u) 7457 | -1/Access | Spotted B-99 Colossus 7491 | -1/Access | Identified exit to Command 7531 | -1/Access | Core integrity fell below 50% 7546 | -1/Access | Self-destructed Last Messages --------------- 07530_ Slug penetrates Wall. 07530_ Penetrated by Slug. 07530_ U-05 Engineer builds a Wall. 07533_ Adv. Hacking Suite destroyed. 07536_ K-01 Serf cleans the Anti-Orbital Battery. 07537_ Penetrated by Slug. 07537_ U-05 Engineer builds a Wall. 07539_ Scrap Engine consumes Enh. Nova Cannon. 07539_ K-01 Serf cleans the Anti-Orbital Battery. 07539_ U-05 Engineer builds a Wall. 07540_ R-10 Processor collects Corrupted Lgt. Ion Engine. 07540_ Slug penetrates U-05 Engineer. 07540_ U-05 Engineer destroyed. 07540_ Centrium-Centrium Exoskeleton destroyed. 07540_ Scrap Engine damaged due to network destabilization (-6). 07540_ Penetrated by Slug. 07540_ Scrap Engine destroyed. 07542_ K-01 Serf cleans the Anti-Orbital Battery. 07545_ Door malfunctions. 07545_ Penetrated by Slug. Map ----- +----------------------------------------------------+ | ?????????????????????????????????????????????????? | | ?????????????????????????????????????????????????? | | ?????????????????????????????????????????????????? | | ?????????????????????????????????????????????????? | | ?????????????????????????????????????????????????? | | ?????????????????????????????????????????????????? | | ?????????????????????????????????????????????????? | | ?????????????????????????????????????????????????? | | ?????????????????????????????????????????????????? | | ???????????????????????????????????????????A?????? | | ?????????????????????????????????????????????????? | | ?????????????????????????????????????????????????? | | ?????????????????????????????????????????????????? | | ????????????????????##########???????????????????? | | ????????????????????# #???????????????????? | | ????????????????????# #???????????????????? | | ????????????????????# " #???????????????????? | | ????????????????????# = """ #???????????????????? | | ????????????????????# """#???????????????????? | | ???????###########??# " #???????????????????? | | ???????# ??# #???????????????????? | | ???????# ?# ?????????????????????? | | ???????# ?? ???????????????????????? | | ???????# ! ###/##?????????????????#?????? | | ???????# # ############## #?????? | | ???????# + @ bAggg ?? | | ???????# " # g kH ?? | | ???????# """ # ######## #?????? | | ???????# """ ] ?# !] k #?????????????????? | | ???????# " ?# ]] #?????????????????? | | ???????# ??# #?????????????????? | | ???????# ??# #?????????????????? | | ???????##########???# #?????????????????? | | ???################## #?????????????????? | | ???# [ #?????????????????? | | ???# "" #?????????????????? | | ??# "" ##????#???????????? | | "#?# k"""" uu+?? #???????????? | | "#?# """" p # #???????????? | | "#?# """" # #???????????? | | T#?# """"u*h # #???????????? | | "#?# ######### k """"=%m # #???????????? | | "#?# #???????# "" =hhu######???????????? | | "#?# #???????# R u###??????????????? | | ??# ######### hRR ##########?????? | | ?## ## # k % # %#?????? | | #?# # # % # % % #?????? | | ### T" # ! # ## # # ""#?????? | | "" / # ## # # """#?????? | | ### # + ##### / R"#?????? | +----------------------------------------------------+ Best States ------------- Heat Dissipation 111 Coolant Potential 50 Energy Generation 43 Energy Capacity 430 Matter Stores 300 Matter Capacity 300 Sight Range 23 Terrain Scan Density 10 Jamming Range 14 Additional Mass Support 9 Armor Coverage 225 Propulsion Shielding 66 Evasion (%) 76 Melee Accuracy 18 Recoil Reduction 3 Offensive Hacking 70 Defensive Hacking 14 Authchip Count 4 Item Schematics ----------------- Cld. VTOL Module | -7/Factory | Scanalyzed Imp. Hacking Suite | -6/Factory | Hacked Adv. Sensor Array | -6/Factory | Hacked Imp. Propulsion Shielding | -6/Factory | Hacked Adv. Hacking Suite | -5/Factory | Hacked Exp. Propulsion Shielding | -4/Factory | Hacked Enh. Nova Cannon | -4/Factory | Hacked Nanoactuators | -4/Armory | Downloaded Exp. Targeting Computer | -4/Armory | Hacked Cmb. Linear Gravjet | -3/Quarantine | Hacked Hvy. Antimatter Reactor | -3/Quarantine | Archive Exp. Flexi-carbon Leg | -3/Quarantine | Archive Robot Schematics ------------------ S-43 Plague | -3/Quarantine | Archive Fabricated ------------ Cld. VTOL Module | x1 | -7/Factory | Authchip Cld. VTOL Module | x1 | -7/Factory | Authchip Cld. VTOL Module | x1 | -7/Factory | Authchip Cld. VTOL Module | x1 | -7/Factory Imp. Hacking Suite | x1 | -5/Factory | Authchip Adv. Hacking Suite | x1 | -4/Factory | Authchip Cld. VTOL Module | x1 | -4/Factory | Authchip Adv. Hacking Suite | x1 | -4/Factory | Authchip Exp. Propulsion Shielding | x1 | -3/Research | Authchip Adv. Sensor Array | x1 | -3/Research | Authchip Alien Tech Used ----------------- Phase Armor Sigix Broadsword Achievements -------------- None Challenges ------------ None Game ------ Seed FlightBombFlail Manual? 0 Play Time 01:43:35 Cumulative 708.7 hours Start 2023.08.06 @ 09:23:36 End 2023.08.06 @ 13:47:11 Sessions 3 Manual Loads 0 Difficulty Rogue Special Mode None Game No. 457 Rogue 450 Adventurer 0 Explorer 7 Win Type - Total 52 Types 19/5/19/2/0/1/4/1/1 Lore% 89 Gallery% 96 Achievement% 82 Wizard Run 0 Options --------- ASCII 0 Keyboard 0 Movement Numpad Keybinds 0 Fullscreen 1 Font 18/X11Bold Map View 76x50 Tactical HUD 1 Map Filters NONE Filters NONE Steam 1 RUN: 0bf08d31-8e3c-42ce-a37d-1e0a920dc3a8